bitfinex/quotes_ETHUSD_20250424
["timestamp","ask_amount","ask_price","bid_price","bid_amount"]
[1745496266328,5.70397457,1753.2,1752.9,26.1267]
[1745496266532,5.7042148,1753.1,1752.9,26.1267]
[1745496267030,5.70420963,1753.1,1752.9,26.1267]
[1745496267263,5.70421757,1753.1,1752.9,26.1267]
[1745496267968,5.70421757,1753.1,1752.9,18.8626]
[1745496268166,5.70421757,1753.1,1753.0,4.896]
[1745496270182,5.7039031,1753.2,1753.0,4.896]
[1745496270528,6.4879204,1753.5,1753.0,4.896]
[1745496270779,5.7030204,1753.5,1753.2,0.0556]
[1745496271074,11.40615473,1753.5,1753.2,0.0556]
[1745496271371,5.7030204,1753.5,1753.2,0.0556]
[1745496272137,5.70297042,1753.5,1753.2,0.0556]
[1745496273173,11.406106,1753.5,1753.2,0.0556]
[1745496273466,5.70297042,1753.5,1753.2,0.0556]
[1745496273667,5.70341575,1753.4,1753.1,0.4896]
[1745496273869,5.70364139,1753.3,1753.1,0.4896]
[1745496274083,5.70353048,1753.3,1753.2,4.896]
[1745496274785,5.70408213,1753.2,1752.9,18.807]
[1745496274934,5.70430434,1753.1,1753.0,4.896]
[1745496275637,5.70450656,1753.0,1752.9,18.807]
[1745496275871,5.70450656,1753.0,1752.9,23.703]
[1745496276071,5.70450656,1753.0,1752.9,18.807]
[1745496276245,5.70450656,1753.0,1752.9,23.703]
[1745496276246,6.51060656,1753.0,1752.9,23.703]
[1745496277968,5.70430434,1753.1,1752.9,23.703]
[1745496278173,5.70450656,1753.0,1752.9,23.703]
[1745496279780,5.70561494,1752.7,1752.4,0.0556]
[1745496279952,5.70561494,1752.7,1752.5,4.896]
[1745496281244,5.70580851,1752.6,1752.5,4.896]
[1745496281642,0.7869,1752.4,1751.7,0.42642855]
[1745496281841,6.4935704,1752.4,1751.8,4.9526]
[1745496282151,5.7064745,1752.4,1751.9,0.55086]
[1745496282355,5.70627032,1752.5,1751.9,0.55086]
[1745496282554,6.4929005,1752.6,1751.9,0.55086]
[1745496283041,6.4929005,1752.6,1752.0,4.897]
[1745496283042,0.826,1752.3,1752.0,4.897]
[1745496283275,5.70695957,1752.3,1752.0,4.897]
[1745496283965,5.70720687,1752.2,1752.0,4.897]
[1745496285785,0.826,1752.5,1752.0,4.897]
[1745496285954,6.53231877,1752.5,1752.0,4.897]
[1745496286155,6.48564038,1752.7,1752.1,0.5453]
[1745496286355,5.70581493,1752.6,1752.1,0.5453]
[1745496286787,5.70623129,1752.5,1752.1,0.5453]
[1745496287150,12.19157029,1752.7,1752.1,0.5453]
[1745496287350,5.70583366,1752.6,1752.1,0.5453]
[1745496287745,5.706154,1752.5,1752.1,0.5453]
[1745496287949,5.70653611,1752.4,1752.1,0.5453]
[1745496288649,5.70653611,1752.4,1752.1,0.0556]
[1745496289379,6.4855938,1752.7,1752.1,0.0556]
[1745496289555,5.70724127,1752.2,1751.7,0.0556]
[1745496289758,5.70724127,1752.2,1751.8,4.936]
[1745496290584,5.70724127,1752.2,1751.9,4.936]
[1745496290784,6.47532989,1752.4,1751.9,5.4296]
[1745496291089,0.7687,1752.4,1752.0,0.0556]
[1745496291261,5.70702438,1752.3,1752.0,0.0556]
[1745496291584,11.41407394,1752.3,1752.0,0.0556]
[1745496291790,5.70711449,1752.2,1752.0,0.0556]
[1745496292076,5.70711449,1752.2,1751.9,4.936]
[1745496292281,5.70617946,1752.5,1752.0,0.0556]
[1745496292671,5.70614444,1752.5,1752.0,0.0556]
[1745496294658,11.41253168,1752.5,1752.0,0.0556]
[1745496294861,5.70614444,1752.5,1752.0,0.0556]
[1745496295054,5.70646151,1752.4,1752.0,0.0556]
[1745496295284,5.70614444,1752.5,1752.0,0.604676]
[1745496295481,5.70646461,1752.4,1752.0,0.604676]
[1745496295658,5.70614444,1752.5,1752.0,0.604676]
[1745496296581,5.70617547,1752.5,1752.0,0.604676]
[1745496297290,6.47464207,1752.6,1752.0,0.604676]
[1745496297455,6.48438746,1752.7,1752.1,0.0556]
[1745496297651,5.70531767,1752.8,1752.2,0.0556]
[1745496297965,5.70531767,1752.8,1752.3,4.937]
[1745496298296,11.41071613,1752.8,1752.3,4.937]
[1745496298794,12.18877265,1752.9,1752.4,0.0556]
[1745496298995,6.48366157,1752.9,1752.4,0.0556]
[1745496299160,12.18879307,1752.9,1752.4,0.55486]
[1745496299357,5.70528319,1752.8,1752.4,0.55486]
[1745496299799,5.7055556,1752.7,1752.4,0.0556]
[1745496299964,5.7058324,1752.6,1752.4,0.0556]
[1745496300294,5.70580988,1752.6,1752.4,0.0556]
[1745496300598,5.7055556,1752.7,1752.4,0.0556]
[1745496300958,6.48366029,1752.9,1752.4,0.0556]
[1745496301160,5.70531025,1752.8,1752.4,0.0556]
[1745496301508,7.28944563,1752.9,1752.4,0.0556]
[1745496301509,5.70496863,1752.9,1752.4,0.0556]
[1745496301795,5.70487456,1752.9,1752.4,0.0556]
[1745496302300,11.40998734,1752.9,1752.4,0.0556]
[1745496302464,5.70487456,1752.9,1752.4,0.0556]
[1745496302660,5.70487456,1752.9,1752.4,0.55486]
[1745496303160,5.70490643,1752.9,1752.5,0.0556]
[1745496303501,5.70516689,1752.8,1752.5,0.0556]
[1745496303657,11.41057442,1752.8,1752.5,0.0556]
[1745496303857,5.70516689,1752.8,1752.5,0.0556]
[1745496304290,5.70517866,1752.8,1752.5,0.0556]
[1745496304494,5.70580851,1752.6,1752.3,4.9926]
[1745496304689,5.70569659,1752.7,1752.3,4.9926]
[1745496305156,5.70614401,1752.5,1752.3,4.9926]
[1745496305489,5.70614401,1752.5,1752.3,4.937]
[1745496305666,5.705928,1752.6,1752.3,4.937]
[1745496306980,5.70614672,1752.5,1752.3,4.937]
[1745496308100,5.70645971,1752.4,1752.3,4.937]
[1745496309400,6.92774335,1752.4,1752.3,4.936]
[1745496309600,5.70659271,1752.4,1752.3,4.936]
[1745496311479,5.7062814,1752.5,1752.3,4.936]
[1745496311686,11.41271154,1752.5,1752.3,4.936]
[1745496311894,5.70645971,1752.4,1752.3,4.936]
[1745496313996,11.41268257,1752.5,1752.3,4.936]
[1745496314176,5.7062814,1752.5,1752.3,4.936]
[1745496314572,0.7736,1752.4,1751.8,0.0556]
[1745496314796,5.70762944,1752.1,1751.8,0.0556]
[1745496315006,5.70697636,1752.3,1751.8,0.0556]
[1745496315519,5.70726555,1752.2,1751.8,0.0556]
[1745496316007,5.70712566,1752.2,1751.8,0.0556]
[1745496316205,6.48032126,1752.4,1751.8,0.55486]
[1745496316411,5.70805924,1752.0,1751.8,0.0556]
[1745496316592,5.70808836,1751.9,1751.8,0.0556]
[1745496316797,5.70801403,1752.0,1751.7,4.9926]
[1745496317171,0.7654,1752.4,1751.7,0.0556]
[1745496317379,5.70733427,1752.2,1751.8,4.9856]
[1745496317691,5.70733427,1752.2,1751.9,4.93]
[1745496318217,5.70747257,1752.1,1751.9,4.93]
[1745496320776,5.70776255,1752.0,1751.9,4.93]
[1745496321177,1.19370606,1752.4,1751.9,4.93]
[1745496321178,5.70732573,1752.2,1751.9,4.93]
[1745496321495,5.70776255,1752.0,1751.9,4.93]
[1745496322013,5.70808836,1751.9,1751.6,0.0556]
[1745496322376,5.7084253,1751.8,1751.7,4.93]
[1745496322720,5.70852449,1751.8,1751.6,0.0556]
[1745496322900,5.70852449,1751.8,1751.7,4.93]
[1745496323211,5.70813605,1751.9,1751.5,0.0556]
[1745496323420,5.70778579,1752.0,1751.6,4.93]
[1745496323576,6.48419442,1752.1,1751.7,0.0556]
[1745496323903,6.48436682,1752.1,1751.7,0.0556]
[1745496324412,6.48417287,1752.1,1751.7,0.0556]
[1745496325715,0.7834,1752.4,1751.7,0.0556]
[1745496325878,5.70627746,1752.5,1751.8,5.70837507]
[1745496326078,5.70662258,1752.4,1751.9,0.37219247]
[1745496326278,5.70662258,1752.4,1752.0,4.93]
[1745496327112,5.70643244,1752.5,1752.0,4.93]
[1745496327279,11.41286361,1752.5,1752.0,4.93]
[1745496327479,5.70643117,1752.5,1752.0,4.93]
[1745496327680,5.70643117,1752.5,1752.0,5.42856]
[1745496327992,5.70646812,1752.4,1752.0,5.42856]
[1745496328437,5.70678925,1752.3,1752.0,0.49856]
[1745496328718,5.70628505,1752.5,1752.2,0.0556]
[1745496329019,5.70628505,1752.5,1752.1,4.9856]
[1745496329818,5.70658031,1752.4,1752.1,4.9856]
[1745496330489,5.70613409,1752.5,1752.1,4.9856]
[1745496330692,0.7733,1752.4,1751.9,0.0556]
[1745496330881,5.70727823,1752.2,1752.0,4.93]
[1745496331080,5.70727823,1752.2,1751.9,0.0556]
[1745496331290,0.7733,1752.1,1751.6,0.0556]
[1745496331616,0.7733,1752.1,1751.7,23.761]
[1745496331778,12.20057271,1752.2,1751.8,2.69303968]
[1745496332184,6.49320772,1752.2,1751.8,2.69303968]
[1745496332802,6.49320772,1752.2,1751.9,0.0556]
[1745496333003,5.70679837,1752.3,1752.0,4.93]
[1745496333615,6.48689851,1752.4,1752.0,4.93]
[1745496333811,12.19364499,1752.4,1752.0,4.93]
[1745496334016,5.70680189,1752.3,1752.0,4.93]
[1745496336231,5.70659851,1752.4,1752.0,4.93]
[1745496336416,3.0,1752.5,1752.1,0.0556]
[1745496336417,5.70625842,1752.5,1752.1,0.0556]
[1745496336618,12.23714353,1752.6,1752.1,0.0556]
[1745496336816,11.41280038,1752.5,1752.1,0.0556]
[1745496337189,5.70635104,1752.5,1752.1,0.0556]
[1745496337888,5.70635104,1752.5,1752.1,0.604016]
[1745496338127,11.41272034,1752.5,1752.1,0.604016]
[1745496338719,5.70658585,1752.4,1752.1,19.436016]
[1745496339300,5.70649516,1752.4,1752.1,19.436016]
[1745496340840,0.8251,1752.6,1752.1,19.436016]
[1745496341039,9.12969913,1753.3,1752.1,19.436016]
[1745496341040,0.7993,1752.8,1752.3,0.7522401]
[1745496341339,12.20999661,1752.8,1752.4,4.9856]
[1745496341497,5.70553553,1752.7,1752.4,4.9856]
[1745496342098,5.70687525,1752.3,1752.1,18.8876]
[1745496342330,5.70662947,1752.4,1752.2,4.93]
[1745496342635,6.52915428,1752.5,1752.2,4.93]
[1745496342801,0.7522401,1752.9,1752.2,4.93]
[1745496342802,11.41206463,1752.6,1752.2,7.31176]
[1745496343199,5.70599472,1752.6,1752.2,7.31176]
[1745496343636,11.4120798,1752.6,1752.2,7.31176]
[1745496343840,5.70599472,1752.6,1752.2,7.31176]
[1745496344018,11.41208917,1752.6,1752.2,7.31176]
[1745496344218,5.70616076,1752.5,1752.2,7.31176]
[1745496344440,5.70599472,1752.6,1752.2,7.31176]
[1745496344607,5.70599472,1752.6,1752.3,0.786776]
[1745496344803,5.70599472,1752.6,1752.3,0.0556]
[1745496344804,5.70625804,1752.5,1752.3,0.0556]
[1745496345342,5.70599472,1752.6,1752.3,0.0556]
[1745496345646,9.5009099,1752.7,1752.3,0.0556]
[1745496345938,5.70629422,1752.5,1752.3,0.0556]
[1745496346301,5.70580851,1752.6,1752.3,0.0556]
[1745496346734,14.41134149,1752.7,1752.3,0.0556]
[1745496347046,14.41134149,1752.7,1752.3,0.55416]
[1745496347047,5.70560035,1752.7,1752.3,0.55416]
[1745496347252,5.70533423,1752.8,1752.3,0.55416]
[1745496347411,5.70560284,1752.7,1752.3,0.55416]
[1745496349534,5.70560284,1752.7,1752.1,18.832]
[1745496349535,5.70693799,1752.3,1752.1,18.8876]
[1745496349740,11.41334321,1752.4,1752.2,4.929]
[1745496349950,5.70678536,1752.3,1752.2,4.929]
[1745496351055,6.53638536,1752.3,1752.2,4.929]
[1745496351616,5.70711106,1752.2,1752.1,18.83]
[1745496351928,5.70711106,1752.2,1752.1,23.759]
[1745496352124,6.9314607,1752.2,1752.1,18.83]
[1745496352451,6.9314607,1752.2,1752.1,23.759]
[1745496352751,6.9314607,1752.2,1752.1,18.83]
[1745496352930,6.9314607,1752.2,1752.1,23.759]
[1745496353128,0.759,1752.1,1751.6,0.0556]
[1745496353457,0.759,1752.1,1751.7,4.929]
[1745496353458,5.70864322,1751.8,1751.7,4.929]
[1745496354026,5.70864322,1751.8,1751.6,18.8866]
[1745496354228,5.70864322,1751.8,1751.7,4.929]
[1745496354422,5.70874008,1751.7,1751.6,18.8866]
[1745496354822,5.70874008,1751.7,1751.6,18.831]
[1745496355221,5.70874008,1751.7,1751.6,23.76]
[1745496355445,5.70874008,1751.7,1751.6,18.831]
[1745496355648,5.70874008,1751.7,1751.6,23.76]
[1745496356721,5.70874008,1751.7,1751.6,18.831]
[1745496357118,5.70874008,1751.7,1751.6,23.76]
[1745496358056,5.70968035,1751.5,1751.2,0.0556]
[1745496358254,5.70923696,1751.6,1751.2,0.0556]
[1745496358459,5.70911602,1751.6,1751.3,4.93]
[1745496359523,5.70949677,1751.5,1751.3,4.93]
[1745496360179,0.7568,1752.1,1751.4,0.8078401]
[1745496360389,0.7568,1752.1,1751.5,0.0556]
[1745496360680,3.7568,1752.3,1751.7,0.0556]
[1745496360878,5.70769146,1752.1,1751.8,4.93]
[1745496361064,5.70776531,1752.0,1751.8,4.93]
[1745496361262,5.70808836,1751.9,1751.8,4.93]
[1745496361581,5.70776531,1752.0,1751.8,4.93]
[1745496361788,5.70833723,1751.9,1751.7,0.0556]
[1745496361939,5.70841332,1751.9,1751.8,4.93]
[1745496363149,5.70789862,1752.0,1751.8,4.93]
[1745496363585,5.70759485,1752.1,1751.8,4.93]
[1745496363795,5.70779443,1752.0,1751.8,4.93]
[1745496364798,5.70838187,1751.9,1751.7,0.0556]
[1745496364951,5.70838187,1751.9,1751.8,4.93]
[1745496365153,11.41594026,1752.0,1751.8,4.93]
[1745496365353,5.70789944,1752.0,1751.8,4.93]
[1745496365784,5.70808836,1751.9,1751.8,4.93]
[1745496366697,4.70312862,1752.3,1751.8,5.42856]
[1745496366994,5.70744197,1752.1,1751.8,5.42856]
[1745496367358,11.41470682,1752.2,1751.8,5.42856]
[1745496367556,5.70699863,1752.3,1751.9,0.0556]
[1745496368862,11.41407284,1752.3,1751.9,0.0556]
[1745496369064,11.41407284,1752.3,1751.9,0.67924001]
[1745496369264,5.7073407,1752.2,1751.9,0.67924001]
[1745496369465,11.41470638,1752.2,1751.9,0.67924001]
[1745496369685,5.7075119,1752.1,1751.9,0.67924001]
[1745496369966,5.70658757,1752.4,1752.0,18.8906]
[1745496370190,5.70615178,1752.5,1752.0,20.842024]
[1745496370391,11.41257684,1752.5,1752.0,20.842024]
[1745496370596,5.70615178,1752.5,1752.0,20.842024]
[1745496370799,6.47510262,1752.4,1752.0,20.786424]
[1745496370987,5.70615178,1752.5,1752.1,4.9856]
[1745496371190,9.47459523,1752.6,1752.1,7.42445068]
[1745496371515,3.0,1752.6,1752.1,7.42445068]
[1745496371716,8.70581768,1752.6,1752.2,0.0556]
[1745496373410,5.70519682,1752.8,1752.2,0.0556]
[1745496373612,5.70519682,1752.8,1752.3,0.0556]
[1745496373770,5.70548609,1752.7,1752.3,0.0556]
[1745496375505,5.70640818,1752.5,1752.4,4.93]
[1745496376570,5.70711106,1752.2,1752.1,0.0556]
[1745496376767,5.70701006,1752.3,1752.1,4.9846]
[1745496377277,5.70664092,1752.4,1752.1,4.9846]
[1745496377473,11.41342501,1752.4,1752.1,4.9846]
[1745496377713,0.7522401,1752.5,1752.1,7.36656]
[1745496377714,5.70632762,1752.5,1752.1,7.36656]
[1745496378410,6.50534306,1752.3,1752.2,4.941]
[1745496380023,5.70741271,1752.2,1752.0,18.835]
[1745496380210,5.70743679,1752.1,1752.0,18.835]
[1745496380809,5.70743679,1752.1,1752.0,23.776]
[1745496381717,5.70741271,1752.2,1752.0,23.776]
[1745496381921,5.70741271,1752.2,1752.0,25.37713537]
[1745496382299,5.7073691,1752.2,1752.0,23.776]
[1745496382502,5.70743679,1752.1,1752.0,23.776]
[1745496382692,5.70735748,1752.2,1752.0,23.776]
[1745496383132,5.70720137,1752.2,1752.0,23.776]
[1745496384315,5.70743679,1752.1,1752.0,18.835]
[1745496384509,5.70743679,1752.1,1752.0,23.776]
[1745496384843,5.70743679,1752.1,1752.0,18.835]
[1745496385126,5.70743679,1752.1,1752.0,23.776]
[1745496389043,12.2324899,1752.2,1752.0,23.776]
[1745496389342,6.52510137,1752.2,1752.0,23.776]
[1745496389538,11.41454382,1752.2,1752.0,23.776]
[1745496390246,5.70720137,1752.2,1752.0,23.776]
[1745496390542,12.20829468,1752.4,1752.0,26.15916]
[1745496390843,5.70688234,1752.3,1752.0,26.15916]
[1745496391042,11.41391614,1752.3,1752.0,26.15916]
[1745496391246,5.70714339,1752.2,1752.0,26.15916]
[1745496391405,5.70714339,1752.2,1752.1,2.615916]
[1745496391609,5.70688234,1752.3,1752.1,2.615916]
[1745496391841,11.41336003,1752.4,1752.1,2.615916]
[1745496392140,0.7772,1752.5,1752.1,2.615916]
[1745496392141,6.48344963,1752.5,1752.2,0.0556]
[1745496392335,11.41265637,1752.5,1752.2,0.0556]
[1745496392531,5.70624963,1752.5,1752.2,0.0556]
[1745496392748,5.70678536,1752.3,1752.2,0.0556]
[1745496393948,5.70678536,1752.3,1752.1,2.671516]
[1745496394318,5.70711106,1752.2,1752.0,18.835]
[1745496394649,5.70678536,1752.3,1752.1,4.941]
[1745496395045,5.70711203,1752.2,1752.0,18.8906]
[1745496395247,5.70582314,1752.6,1752.3,0.0556]
[1745496395553,5.70563231,1752.7,1752.3,0.0556]
[1745496395759,5.70563231,1752.7,1752.3,0.63048401]
[1745496396637,5.70533105,1752.8,1752.4,0.7522401]
[1745496398343,11.41076099,1752.8,1752.4,0.7522401]
[1745496398545,5.70533105,1752.8,1752.4,0.7522401]
[1745496398850,11.41074545,1752.8,1752.4,0.7522401]
[1745496399548,11.41074545,1752.8,1752.3,0.63048401]
[1745496399549,5.70533105,1752.8,1752.3,0.63048401]
[1745496399714,5.70574892,1752.7,1752.3,0.63048401]
[1745496400857,5.7057295,1752.7,1752.3,0.63048401]
[1745496401144,5.70582225,1752.6,1752.3,0.63048401]
[1745496401867,5.70616285,1752.5,1752.4,4.94]
[1745496402531,5.70582225,1752.6,1752.4,4.94]
[1745496402734,5.70613409,1752.5,1752.4,4.94]
[1745496403230,5.70613409,1752.5,1752.3,0.0556]
[1745496403461,5.70613409,1752.5,1752.4,4.94]
[1745496403658,5.70613409,1752.5,1752.3,0.0556]
[1745496403858,5.70613409,1752.5,1752.1,0.0556]
[1745496403859,5.7065551,1752.4,1752.1,0.0556]
[1745496404167,5.70613409,1752.5,1752.2,4.94]
[1745496405327,5.70568737,1752.7,1752.3,0.0556]
[1745496405531,5.70581145,1752.6,1752.3,0.0556]
[1745496406667,5.70625436,1752.5,1752.2,4.94]
[1745496406843,5.70581145,1752.6,1752.3,0.494]
[1745496407040,11.41187666,1752.6,1752.3,0.494]
[1745496407368,5.70581145,1752.6,1752.3,0.494]
[1745496407733,11.41186472,1752.6,1752.3,0.494]
[1745496408268,5.70581145,1752.6,1752.3,0.494]
[1745496409246,5.70629216,1752.5,1752.4,4.905]
[1745496410082,6.49859216,1752.5,1752.4,4.905]
[1745496410684,5.70680435,1752.3,1752.0,18.835]
[1745496410986,5.70680435,1752.3,1752.1,4.905]
[1745496411346,5.70734588,1752.2,1752.0,18.835]
[1745496411577,5.70743679,1752.1,1752.0,18.835]
[1745496411889,5.70743679,1752.1,1752.0,23.74]
[1745496413989,5.70743679,1752.1,1752.0,18.835]
[1745496414153,5.70743679,1752.1,1752.0,23.74]
[1745496416516,6.49964588,1752.2,1752.0,23.7956]
[1745496416517,5.70734588,1752.2,1752.0,23.7956]
[1745496417001,5.70743679,1752.1,1752.0,23.7956]
[1745496417369,5.70743679,1752.1,1752.0,23.74]
[1745496418973,5.70743679,1752.1,1752.0,23.741]
[1745496423527,5.70734588,1752.2,1752.0,23.741]
[1745496423810,11.41471238,1752.2,1752.0,23.741]
[1745496423997,5.70743679,1752.1,1752.0,23.741]
[1745496424611,11.41476692,1752.2,1752.0,23.741]
[1745496424815,11.41474965,1752.2,1752.0,23.741]
[1745496425111,5.70593591,1752.6,1752.1,0.0556]
[1745496425317,11.41206891,1752.6,1752.2,0.7522401]
[1745496425527,5.70593591,1752.6,1752.2,0.7522401]
[1745496425814,5.70566377,1752.7,1752.3,0.0556]
[1745496425990,5.70590725,1752.6,1752.4,4.906]
[1745496426385,11.41202707,1752.6,1752.4,4.906]
[1745496426602,5.70613409,1752.5,1752.4,4.906]
[1745496427118,5.70613409,1752.5,1752.0,21.21466]
[1745496427119,5.70613409,1752.5,1752.0,21.9669001]
[1745496427281,5.70632881,1752.5,1752.1,4.9616]
[1745496427480,5.70658248,1752.4,1752.1,7.579226]
[1745496427710,5.70632881,1752.5,1752.1,7.579226]
[1745496429030,5.70648354,1752.4,1752.1,7.579226]
[1745496429202,5.70648354,1752.4,1752.2,4.906]
[1745496429531,5.70648354,1752.4,1752.3,4.906]
[1745496429823,5.70648354,1752.4,1752.1,2.673226]
[1745496430031,5.70648354,1752.4,1752.3,4.905]
[1745496430919,11.41275891,1752.5,1752.3,4.905]
[1745496433131,5.70648122,1752.4,1752.1,0.0556]
[1745496433333,5.70648122,1752.4,1752.2,4.905]
[1745496433622,6.53498122,1752.4,1752.3,4.905]
[1745496435089,5.70682302,1752.3,1752.0,18.835]
[1745496435296,5.70664593,1752.4,1752.1,4.905]
[1745496435926,5.70630879,1752.5,1752.1,4.905]
[1745496436099,5.70655764,1752.4,1752.1,4.905]
[1745496436305,11.41332326,1752.4,1752.1,4.905]
[1745496436505,5.70655764,1752.4,1752.1,4.905]
[1745496436728,5.70655764,1752.4,1752.1,7.46735]
[1745496437206,11.4132661,1752.4,1752.1,7.46735]
[1745496437405,5.70655764,1752.4,1752.1,7.46735]
[1745496437930,5.70645971,1752.4,1752.1,7.46735]
[1745496438099,5.70688717,1752.3,1752.1,4.905]
[1745496439543,5.70711106,1752.2,1752.1,4.905]
[1745496439740,5.70688717,1752.3,1752.1,4.905]
[1745496440604,5.70665637,1752.4,1752.1,4.905]
[1745496440805,5.70688839,1752.3,1752.1,4.905]
[1745496441343,5.70665637,1752.4,1752.1,4.905]
[1745496441702,11.41335983,1752.4,1752.1,4.905]
[1745496441940,11.41335564,1752.4,1752.1,4.905]
[1745496442137,5.70665637,1752.4,1752.1,4.905]
[1745496442647,5.70634171,1752.5,1752.1,7.3346]
[1745496443006,5.7059438,1752.6,1752.1,7.3346]
[1745496443201,0.817,1752.8,1752.1,7.3346]
[1745496443408,5.70534558,1752.8,1752.3,0.0556]
[1745496443618,5.70496097,1752.9,1752.4,0.0556]
[1745496443847,5.70496097,1752.9,1752.6,0.0556]
[1745496444140,11.4100493,1752.9,1752.6,0.0556]
[1745496444318,5.70548296,1752.7,1752.5,4.902]
[1745496444519,6.84654727,1752.7,1752.5,4.902]
[1745496444715,5.70516009,1752.8,1752.5,4.902]
[1745496445340,5.70567246,1752.7,1752.5,4.902]
[1745496446546,11.41059663,1752.8,1752.5,4.902]
[1745496447249,5.70516009,1752.8,1752.5,4.902]
[1745496447850,5.70516009,1752.8,1752.4,0.0556]
[1745496448054,6.47110851,1752.6,1752.5,4.901]
[1745496448249,6.47110851,1752.6,1752.2,0.0556]
[1745496448250,5.70649448,1752.4,1752.2,0.0556]
[1745496448413,5.70649448,1752.4,1752.3,4.901]
[1745496449051,5.70641867,1752.5,1752.3,4.901]
[1745496450454,12.17731082,1752.6,1752.3,4.901]
[1745496450753,11.41139948,1752.7,1752.3,5.39666]
[1745496451055,5.70582827,1752.6,1752.3,5.39666]
[1745496451645,5.70567352,1752.7,1752.3,5.39666]
[1745496451950,5.7058631,1752.6,1752.3,5.39666]
[1745496452632,5.70567352,1752.7,1752.3,5.39666]
[1745496452953,5.70575263,1752.7,1752.4,0.0556]
[1745496454462,5.70518731,1752.8,1752.4,0.0556]
[1745496454664,5.70499536,1752.9,1752.5,0.0556]
[1745496455685,5.70439589,1753.1,1752.7,0.0556]
[1745496455852,5.70439589,1753.1,1752.8,4.901]
[1745496456481,11.40883597,1753.1,1752.8,4.901]
[1745496456781,11.40885322,1753.1,1752.8,4.901]
[1745496457775,5.70439589,1753.1,1752.8,4.901]
[1745496458080,11.4088623,1753.1,1752.8,4.901]
[1745496458677,5.70439589,1753.1,1752.8,5.39666]
[1745496458975,11.40882377,1753.1,1752.8,5.39666]
[1745496459179,5.70452632,1753.0,1752.8,5.39666]
[1745496460246,5.70483199,1752.9,1752.8,4.901]
[1745496460445,7.21446642,1753.0,1752.4,0.0556]
[1745496460681,5.70531786,1752.8,1752.5,4.901]
[1745496461057,11.41075631,1752.8,1752.5,4.901]
[1745496461252,0.7548,1752.7,1752.6,4.901]
[1745496461457,6.46028296,1752.7,1752.6,4.901]
[1745496462746,5.70599208,1752.6,1752.3,0.0556]
[1745496462976,5.70599208,1752.6,1752.4,4.901]
[1745496463886,5.70548296,1752.7,1752.5,4.901]
[1745496464391,11.41121978,1752.7,1752.5,4.901]
[1745496464689,11.41072556,1752.8,1752.5,5.3911]
[1745496465160,11.41077664,1752.8,1752.5,5.3911]
[1745496465484,5.70564103,1752.7,1752.5,4.901]
[1745496465689,5.70532045,1752.8,1752.5,4.901]
[1745496465862,5.70532045,1752.8,1752.6,0.0556]
[1745496466057,5.70496548,1752.9,1752.6,0.0556]
[1745496466260,11.41004243,1752.9,1752.6,0.0556]
[1745496466465,5.70496548,1752.9,1752.6,0.0556]
[1745496466867,11.41006504,1752.9,1752.6,0.0556]
[1745496467279,11.4100561,1752.9,1752.6,0.0556]
[1745496467491,5.70496548,1752.9,1752.6,0.0556]
[1745496467694,11.41007584,1752.9,1752.6,0.0556]
[1745496468189,5.70496548,1752.9,1752.6,0.0556]
[1745496468593,5.70517263,1752.8,1752.6,0.0556]
[1745496468995,5.70496548,1752.9,1752.6,0.55126]
[1745496469499,5.70522903,1752.8,1752.6,0.55126]
[1745496469699,5.70522903,1752.8,1752.4,0.0556]
[1745496469885,5.70522903,1752.8,1752.5,4.901]
[1745496470074,5.7055711,1752.7,1752.5,4.901]
[1745496470458,11.41130792,1752.7,1752.5,4.901]
[1745496470706,5.70580851,1752.6,1752.3,0.0556]
[1745496470908,5.70627315,1752.5,1752.4,4.9]
[1745496471798,5.70627315,1752.5,1752.2,0.0556]
[1745496472104,5.70627315,1752.5,1752.4,4.9]
[1745496472542,6.52447668,1752.4,1752.0,0.0556]
[1745496472802,6.52447668,1752.4,1752.1,4.901]
[1745496474011,6.52447668,1752.4,1752.2,4.901]
[1745496474210,5.70678536,1752.3,1752.2,4.901]
[1745496476413,5.70678536,1752.3,1752.0,0.0556]
[1745496476707,5.70711106,1752.2,1752.1,4.901]
[1745496476889,6.35937533,1752.3,1752.1,4.901]
[1745496477224,5.70711106,1752.2,1752.1,4.901]
[1745496478508,0.7647,1752.2,1751.7,5.0]
[1745496478707,5.70889337,1751.7,1751.3,18.8856]
[1745496478911,5.70889337,1751.7,1751.4,4.901]
[1745496479124,6.47292483,1751.9,1751.4,4.901]
[1745496479325,5.70822483,1751.9,1751.5,0.0556]
[1745496479829,11.41656818,1751.9,1751.5,0.0556]
[1745496480070,6.51671724,1751.8,1751.4,4.901]
[1745496480322,5.7087529,1751.7,1751.4,7.468516]
[1745496480491,12.22537635,1751.8,1751.4,7.468516]
[1745496480686,5.70875679,1751.7,1751.4,7.468516]
[1745496481086,5.7091237,1751.6,1751.4,7.468516]
[1745496481286,5.70875679,1751.7,1751.4,7.468516]
[1745496482905,6.46007143,1752.0,1751.6,0.0556]
[1745496482906,5.70824855,1751.9,1751.6,0.0556]
[1745496483111,11.4165733,1751.9,1751.6,0.0556]
[1745496483691,5.70808836,1751.9,1751.6,0.0556]
[1745496483884,5.7086337,1751.8,1751.6,0.0556]
[1745496484127,11.41729424,1751.8,1751.6,0.0556]
[1745496484289,11.41729424,1751.8,1751.4,8.2763561]
[1745496484717,5.7086337,1751.8,1751.4,8.2763561]
[1745496485132,5.70814915,1751.9,1751.4,8.2763561]
[1745496485333,5.70853766,1751.8,1751.5,0.82763561]
[1745496486833,5.70814915,1751.9,1751.5,0.82763561]
[1745496487038,5.70790502,1752.0,1751.6,0.0556]
[1745496489021,0.8024,1751.6,1750.8,5.0]
[1745496489202,6.51390796,1750.9,1750.3,0.0556]
[1745496489404,5.71184039,1750.8,1750.3,0.0556]
[1745496489641,5.71184039,1750.8,1750.4,0.7522401]
[1745496490006,5.71184039,1750.8,1750.5,4.902]
[1745496490205,5.71209,1750.7,1750.5,5.46742401]